bitfinex/quotes_ETHUSD_20220309
["timestamp","ask_amount","ask_price","bid_price","bid_amount"]
[1646823522571,5.5,2761.3,2760.8,3.01741576]
[1646823522870,0.00256651,2761.2,2760.8,3.01741576]
[1646823523123,0.00256651,2761.2,2760.9,0.90611]
[1646823523716,1.0,2761.3,2760.9,0.90611]
[1646823523918,0.0025666,2761.2,2760.9,0.90611]
[1646823524925,1.0,2761.3,2760.9,0.90611]
[1646823525124,0.0025666,2761.2,2760.9,0.90611]
[1646823526124,1.0,2761.3,2760.9,0.90611]
[1646823526324,0.0025666,2761.2,2760.9,0.90611]
[1646823527363,1.0,2761.3,2760.9,0.90611]
[1646823527662,0.0025666,2761.2,2760.9,0.90611]
[1646823528463,1.0,2761.3,2760.9,0.90611]
[1646823528863,0.0025666,2761.2,2760.9,0.90611]
[1646823529667,1.0,2761.3,2760.9,0.90611]
[1646823529870,6.0,2761.0,2759.9,2.7221177]
[1646823530071,0.029168,2760.0,2759.8,0.66797386]
[1646823530271,0.029168,2760.0,2759.9,1.49123799]
[1646823530523,0.029168,2760.0,2759.2,0.00801483]
[1646823530524,4.5,2759.9,2759.2,0.00801483]
[1646823530727,4.5,2759.9,2758.7,1.75601386]
[1646823530728,9.945,2759.8,2758.7,1.75601386]
[1646823530927,9.945,2759.8,2758.8,1.71802161]
[1646823530928,0.029168,2759.3,2758.8,1.71802161]
[1646823531126,6.0,2758.9,2757.8,0.66797386]
[1646823531332,3.0,2758.6,2757.6,4.34930115]
[1646823531527,0.029168,2757.9,2757.6,3.18132729]
[1646823531730,3.0,2758.4,2757.6,3.18132729]
[1646823531925,1.0,2758.4,2757.7,0.90716]
[1646823532130,2.90731,2758.4,2757.7,0.90716]
[1646823532326,1.90731,2758.4,2757.7,0.90716]
[1646823532527,1.90731,2758.4,2757.5,2.48218386]
[1646823532528,3.20731,2758.4,2757.9,0.00319684]
[1646823532726,2.20731,2758.4,2757.9,0.00319684]
[1646823532930,2.90731,2758.4,2757.9,0.00319684]
[1646823533130,1.90731,2758.4,2757.9,0.91026684]
[1646823533335,1.12278596,2758.4,2757.9,0.90707]
[1646823533731,1.12278596,2758.4,2758.0,0.00396674]
[1646823534565,0.90686,2758.7,2757.9,2.11399]
[1646823534866,0.90686,2758.7,2758.2,0.90691]
[1646823535670,0.96172378,2758.5,2758.2,0.90691]
[1646823536072,0.96172378,2758.5,2758.3,0.00396012]
[1646823536871,1.86868378,2758.5,2758.2,0.90691]
[1646823537270,0.1812,2758.4,2758.3,0.00396017]
[1646823537670,0.1812,2758.4,2758.3,0.00235117]
[1646823538106,0.1812,2758.4,2758.2,0.90691]
[1646823538307,1.81426,2758.3,2758.1,0.3]
[1646823538509,0.1812,2758.2,2758.1,0.3]
[1646823538706,0.1812,2758.2,2757.8,1.8141]
[1646823539308,0.99935363,2758.0,2757.8,1.8141]
[1646823539708,0.99935363,2758.0,2757.9,0.00381695]
[1646823539908,1.29935363,2758.0,2757.9,0.00381695]
[1646823540111,2.23567163,2758.0,2757.9,0.00381695]
[1646823540511,2.23567163,2758.0,2757.5,0.90723]
[1646823540719,1.236318,2758.0,2757.5,0.90723]
[1646823541772,0.936318,2758.0,2757.5,4.40723]
[1646823541963,1.1812,2758.2,2757.5,4.40723]
[1646823542162,1.1812,2758.2,2757.5,0.90723]
[1646823542363,1.4812,2758.2,2757.5,0.90723]
[1646823542564,1.3,2758.2,2757.7,0.90706]
[1646823542767,1.3,2758.2,2757.8,0.90701]
[1646823543164,1.3,2758.2,2757.8,0.91120221]
[1646823543563,0.90705,2758.4,2757.8,0.91120221]
[1646823543564,1.20705,2758.4,2757.8,0.91120221]
[1646823544164,0.3,2758.4,2757.8,0.90701]
[1646823544365,1.3,2758.5,2758.0,0.00419203]
[1646823544565,0.3,2758.5,2758.1,1.81383]
[1646823544764,0.90693,2758.6,2758.1,2.11383]
[1646823544765,1.20693,2758.6,2758.1,2.11383]
[1646823545167,1.20693,2758.6,2758.1,0.3]
[1646823545516,1.20693,2758.6,2758.0,0.00419203]
[1646823545517,1.90715,2758.2,2758.0,0.3]
[1646823545715,2.20715,2758.2,2757.7,1.8142]
[1646823546118,1.90715,2758.2,2757.4,0.3]
[1646823546317,1.90715,2758.2,2757.2,3.5]
[1646823546318,0.029168,2758.1,2757.2,0.3]
[1646823546617,0.029168,2758.1,2757.1,2.4552]
[1646823546818,1.3,2758.2,2757.7,0.00409322]
[1646823547021,1.0,2758.2,2757.7,0.00409322]
[1646823547818,1.0,2758.2,2757.4,1.35345308]
[1646823548022,1.91190305,2758.2,2757.8,0.00401442]
[1646823548219,1.0,2758.2,2757.8,0.00401442]
[1646823549123,0.90706,2758.3,2757.7,2.11404]
[1646823549362,0.3,2758.3,2757.9,0.91097436]
[1646823549767,1.40230889,2758.4,2757.9,0.91097436]
[1646823550169,1.40230889,2758.4,2757.9,1.81392]
[1646823550569,1.40230889,2758.4,2758.0,0.00402858]
[1646823550767,0.3,2758.4,2758.0,0.00402858]
[1646823550968,1.236128,2758.6,2758.0,0.00402858]
[1646823551169,0.3,2758.6,2758.0,0.00402858]
[1646823551366,0.029168,2758.6,2757.9,2.11392]
[1646823551567,0.029168,2758.6,2758.2,0.00383958]
[1646823551766,0.029168,2758.6,2758.2,0.91070958]
[1646823552568,0.029168,2758.6,2758.2,0.90687]
[1646823552768,0.029168,2758.6,2758.3,0.00383946]
[1646823553614,1.16224545,2758.7,2758.6,0.05618925]
[1646823553816,2.06920545,2758.7,2758.6,0.05618925]
[1646823554114,5.56920545,2758.7,2758.6,0.05618925]
[1646823554315,5.56920545,2758.7,2758.3,0.00383731]
[1646823554316,6.0,2758.6,2758.3,0.00383731]
[1646823554516,3.51688,2758.5,2758.3,0.00383731]
[1646823555015,4.51688,2758.5,2757.5,1.1995]
[1646823555214,4.51688,2758.5,2757.6,0.90717]
[1646823555215,1.08757267,2758.1,2757.6,0.90717]
[1646823555415,1.08757267,2758.1,2757.7,0.90714]
[1646823556021,1.08757267,2758.1,2757.7,2.72132]
[1646823556219,1.99471267,2758.1,2757.7,2.72132]
[1646823556419,1.99471267,2758.1,2757.8,0.0038337]
[1646823557264,1.99471267,2758.1,2757.7,3.02132]
[1646823557463,1.08757267,2758.1,2757.8,0.90707]
[1646823557666,1.08757267,2758.1,2757.8,1.21090364]
[1646823558264,1.38757267,2758.1,2757.8,1.21090364]
[1646823558467,1.38757267,2758.1,2757.8,1.20707]
[1646823558867,1.38757267,2758.1,2757.8,1.21090768]
[1646823559266,1.08757267,2758.1,2757.8,1.21090768]
[1646823559669,1.08757267,2758.1,2757.8,1.20707]
[1646823560069,1.08757267,2758.1,2757.8,1.21090768]
[1646823560268,1.38757267,2758.1,2757.8,1.21090768]
[1646823560918,1.38757267,2758.1,2757.8,1.20707]
[1646823560919,0.3,2758.1,2757.8,1.20707]
[1646823561325,0.4892523,2758.2,2757.8,1.21090768]
[1646823561523,0.1892523,2758.2,2757.8,1.21090768]
[1646823561723,1.0,2758.6,2757.8,1.21090768]
[1646823561923,1.0,2758.6,2758.1,0.029168]
[1646823561924,0.90481894,2758.3,2758.1,0.029168]
[1646823562422,0.90481894,2758.3,2758.1,0.00383712]
[1646823563422,0.90481894,2758.3,2758.0,0.3]
[1646823563627,0.90703,2758.4,2758.1,0.00383712]
[1646823564569,0.90703,2758.4,2757.9,3.92792]
[1646823564570,1.13098565,2758.3,2757.9,3.92792]
[1646823564969,1.13098565,2758.3,2758.1,0.91084706]
[1646823565767,1.13098565,2758.3,2758.1,0.90701]
[1646823566170,1.13098565,2758.3,2758.1,0.91085447]
[1646823566570,1.12956922,2758.3,2758.1,0.91085447]
[1646823567067,0.90703,2758.4,2758.1,0.90701]
[1646823567268,0.90703,2758.4,2758.1,0.91085447]
[1646823567869,0.90703,2758.4,2758.1,0.00384447]
[1646823568114,0.90703,2758.4,2758.0,2.11406]
[1646823568314,1.19563528,2758.3,2758.0,1.81406]
[1646823568511,0.90703,2758.4,2758.1,0.91084442]
[1646823568717,0.18924175,2758.6,2758.1,0.91084442]
[1646823569014,0.18924175,2758.6,2758.1,1.81778442]
[1646823569416,0.18924175,2758.6,2758.1,1.81394]
[1646823569613,1.16184784,2758.5,2758.2,0.00384233]
[1646823569814,0.18924175,2758.6,2758.2,0.00384233]
[1646823569815,0.18924175,2758.6,2758.2,3.50384233]
[1646823570218,0.15223878,2759.0,2758.2,5.31732233]
[1646823570418,0.15223878,2759.0,2758.4,1.81345]
[1646823570819,0.15223878,2759.0,2758.4,2.11345]
[1646823571020,0.15223878,2759.0,2758.5,3.5]
[1646823571419,0.15223878,2759.0,2758.6,1.81351]
[1646823571622,0.45223878,2759.0,2758.6,3.62708]
[1646823571870,0.45223878,2759.0,2758.6,3.92708]
[1646823572077,0.45223878,2759.0,2758.7,0.00384181]
[1646823572876,0.90687,2758.9,2758.7,0.00384181]
[1646823573079,0.90687,2758.9,2758.5,0.90685]
[1646823573277,0.90687,2758.9,2758.7,0.00384216]
[1646823573278,0.45223878,2758.9,2758.7,0.00384216]
[1646823573678,0.15223878,2758.9,2758.7,1.49557095]
[1646823574176,0.15223878,2758.9,2758.7,1.49172879]
[1646823574376,0.15223878,2758.9,2758.7,1.49557101]
[1646823575377,0.15223878,2758.9,2758.7,1.49172879]
[1646823575621,0.15223878,2758.9,2758.7,1.49557101]
[1646823576626,0.15223878,2758.9,2758.7,1.49172879]
[1646823576824,1.05910878,2758.9,2758.7,1.49557091]
[1646823577223,0.15223878,2758.9,2758.7,1.49557091]
[1646823577425,0.15223878,2758.9,2758.7,3.30898091]
[1646823577624,0.15223878,2758.9,2758.8,1.49172879]
[1646823579570,0.48923468,2759.1,2758.8,1.49172879]
[1646823579771,2.5,2759.2,2758.9,2.95321792]
[1646823579973,2.5,2759.2,2759.0,1.52089679]
[1646823580169,2.5,2759.2,2759.1,1.49172879]
[1646823580770,2.5,2759.2,2759.1,2.61719481]
[1646823580771,0.90913144,2759.2,2759.1,2.61719481]
[1646823581171,0.90913144,2759.2,2759.1,2.97969481]
[1646823581571,0.145251,2759.5,2759.2,4.7689]
[1646823581776,1.0,2759.9,2759.3,1.49172879]
[1646823582372,2.5,2759.4,2759.3,1.49172879]
[1646823582573,2.5,2759.6,2759.3,1.49172879]
[1646823584122,2.5,2759.4,2759.3,1.49172879]
[1646823584520,2.5,2759.6,2759.3,1.49172879]
[1646823585222,3.70679512,2759.6,2759.3,1.49172879]
[1646823585420,1.20679512,2759.6,2759.3,1.49172879]
[1646823585621,2.20679512,2759.6,2759.3,1.49172879]
[1646823585821,1.0,2759.9,2759.3,1.49172879]
[1646823586021,1.0,2759.9,2759.4,0.9065]
[1646823587067,2.07153068,2759.9,2759.4,2.7195]
[1646823587266,2.07153068,2759.9,2759.4,3.0195]
[1646823589276,1.9065,2760.0,2759.4,3.0195]
[1646823589277,1.145251,2760.0,2759.5,1.49132697]
[1646823589482,1.145251,2760.0,2759.5,3.30402697]
[1646823589676,2.8303,2760.3,2759.6,1.49132697]
[1646823589677,3.8303,2760.3,2759.6,1.49132697]
[1646823589878,1.0,2760.3,2759.7,0.935498]
[1646823590079,1.0,2760.3,2759.7,1.235498]
[1646823590276,1.08302463,2760.1,2759.7,0.935498]
[1646823590531,1.08302463,2760.1,2759.8,0.90629]
[1646823590728,1.08302463,2760.1,2759.4,2.142168]
[1646823590923,1.08302463,2760.1,2759.4,1.813]
[1646823591123,1.0,2759.9,2759.4,1.813]
[1646823591324,1.21024052,2759.5,2759.3,2.4489]
[1646823591525,1.21024052,2759.5,2759.2,1.81314]
[1646823591526,2.11690052,2759.5,2759.2,1.81314]
[1646823592526,1.21024052,2759.5,2759.2,1.81314]
[1646823593030,2.81331,2759.8,2759.2,1.81314]
[1646823593031,1.0,2759.8,2759.2,1.81314]
[1646823593228,0.145256,2759.6,2759.3,1.49135349]
[1646823593629,0.145256,2759.6,2759.4,0.029168]
[1646823594672,1.0,2759.9,2759.4,0.029168]
[1646823594872,1.0,2759.9,2759.4,0.935708]
[1646823595069,1.0,2759.9,2759.4,1.235708]
[1646823595468,1.0,2759.9,2759.4,0.935708]
[1646823595671,1.0,2759.9,2759.4,1.235708]
[1646823595970,1.0,2759.9,2759.6,0.935708]
[1646823596371,1.0,2759.9,2759.6,1.235708]
[1646823597175,1.0,2759.9,2759.6,1.20654]
[1646823598219,1.0,2759.9,2759.6,0.90654]
[1646823600224,0.96443264,2759.9,2759.6,1.02777598]
[1646823601426,2.77771264,2759.9,2759.6,0.12123598]
[1646823601762,3.77771264,2759.9,2759.6,0.12123598]
[1646823601968,1.96443264,2759.9,2759.6,0.12123598]
[1646823602372,0.96443264,2759.9,2759.6,0.12123598]
[1646823602569,0.96443264,2759.9,2759.6,1.93414598]
[1646823602970,3.0,2760.3,2759.7,0.90637]
[1646823603172,3.0,2760.3,2759.9,0.029168]
[1646823603371,2.38584754,2760.5,2759.9,0.029168]
[1646823603571,2.38584754,2760.5,2759.9,1.841648]
[1646823603773,2.38584754,2760.5,2760.0,3.5]
[1646823603973,3.55176416,2760.5,2760.2,0.029168]
[1646823604171,3.55176416,2760.5,2760.0,3.529168]
[1646823604371,1.16591662,2760.5,2760.0,3.529168]
[1646823604673,2.5,2760.1,2760.0,5.341358]
[1646823604877,2.5,2760.1,2760.0,5.641358]
[1646823605072,2.5,2760.1,2760.0,2.141358]
[1646823605272,2.5,2760.1,2760.0,2.11219]
[1646823605527,2.5,2760.1,2760.0,0.3]
[1646823605720,2.5,2760.2,2759.9,2.11252]
[1646823606123,0.22388089,2760.0,2759.9,2.11252]
[1646823606522,0.22388089,2760.0,2759.9,0.3]
[1646823606722,0.22388089,2760.0,2759.6,1.96333398]
[1646823606924,1.22347386,2760.1,2759.6,2.26333398]
[1646823607722,1.22347386,2760.1,2759.8,1.81273]
[1646823607922,1.22347386,2760.1,2759.8,2.71908]
[1646823608323,0.90641,2760.3,2759.8,3.01908]
[1646823608622,0.90641,2760.3,2759.9,0.90635]
[1646823609465,4.82078728,2760.1,2759.9,0.90635]
[1646823609871,5.82078728,2760.1,2759.9,0.935518]
[1646823610073,0.38311728,2760.1,2759.9,0.935518]
[1646823610269,0.9269909,2760.3,2759.9,0.935518]
[1646823611572,4.90632,2760.5,2759.9,0.935518]
[1646823611871,4.90632,2760.5,2760.0,7.12517]
[1646823611872,1.99382498,2760.5,2760.0,7.12517]
[1646823612070,2.8625,2760.8,2760.1,0.029168]
[1646823612271,3.0,2760.9,2760.3,0.9061]
[1646823612471,3.0,2760.9,2760.3,4.4061]
[1646823612675,0.145213,2760.6,2760.3,4.4061]
[1646823613131,0.92680342,2760.8,2760.3,4.4061]
[1646823613432,0.92680342,2760.8,2760.3,3.62463]
[1646823613730,0.92680342,2760.8,2760.3,3.92463]
[1646823615133,1.0,2760.7,2760.3,3.92463]
[1646823615335,0.90635,2760.6,2760.3,3.92886253]
[1646823616334,0.90635,2760.6,2760.3,3.92463]
[1646823616533,4.20635,2760.6,2760.3,3.62886251]
[1646823616768,0.15179975,2760.5,2760.3,0.00423251]
[1646823617069,0.15179975,2760.5,2759.6,0.30233598]
[1646823617070,2.02343502,2760.3,2759.6,0.30233598]
[1646823617269,0.98194994,2759.7,2759.6,0.12123598]
[1646823617972,0.3,2760.0,2759.6,0.12123598]
[1646823618168,1.0,2759.8,2759.6,0.12123598]
[1646823618369,0.9065,2759.9,2759.6,0.12123598]
[1646823618970,0.3,2760.0,2759.6,5.43426598]
[1646823619171,2.00096,2760.4,2759.7,4.20951001]
[1646823619371,1.0,2760.4,2760.0,0.029168]
[1646823619973,5.9257,2760.8,2760.0,0.029168]
[1646823620174,0.97128976,2760.7,2760.1,1.81249]
[1646823620376,0.145215,2760.6,2760.3,1.81246]
[1646823620627,0.00310527,2760.9,2760.3,1.81246]
[1646823621320,1.0,2760.9,2760.3,1.81246]
[1646823621521,2.14660003,2760.9,2760.3,1.81246]
[1646823621718,2.44660003,2760.9,2760.3,1.81246]
[1646823621919,1.44660003,2760.9,2760.3,1.81246]
[1646823622119,1.44660003,2760.9,2760.3,2.7186]
[1646823622327,1.44660003,2760.9,2760.4,0.90613]
[1646823622920,1.81269,2760.7,2760.4,0.90613]
[1646823623124,1.0,2760.5,2760.3,3.0186]
[1646823623320,1.3,2760.5,2760.3,3.0186]
[1646823623922,0.98288295,2760.4,2760.3,3.0186]
[1646823624574,0.98288295,2760.4,2760.3,0.3]
[1646823624774,3.98288295,2760.4,2760.0,1.81286]
[1646823624975,0.90654,2760.3,2760.0,1.81709366]
[1646823625174,1.20654,2760.3,2760.1,0.90649]
[1646823625680,1.0,2760.2,2760.1,0.90649]
[1646823625875,1.0,2760.2,2760.1,1.20649]
[1646823626076,1.0,2760.2,2760.1,0.90649]
[1646823626277,1.0,2760.2,2760.1,1.20649]
[1646823626976,1.20654,2760.3,2760.1,1.20649]
[1646823627178,1.0,2760.4,2760.1,1.20649]
[1646823627477,1.0,2760.4,2760.2,0.90626]
[1646823627678,0.00258531,2760.7,2760.2,2.71859]
[1646823627880,0.00258531,2760.7,2760.3,2.71839]
[1646823628328,1.45179975,2760.8,2760.3,2.71839]
[1646823628723,0.00258564,2760.7,2760.3,2.71839]
[1646823629122,0.00258564,2760.7,2760.3,4.53073]
[1646823629323,0.00258564,2760.7,2760.4,0.90617]
[1646823629526,1.45179975,2760.8,2760.4,0.90617]
[1646823629923,0.00258564,2760.7,2760.4,0.90617]
[1646823630831,1.45179975,2760.8,2760.4,0.90617]
[1646823631028,0.00258569,2760.7,2760.5,0.90615]
[1646823631636,0.00258569,2760.7,2760.6,3.5]
[1646823631870,0.3,2761.0,2760.6,5.341078]
[1646823632072,2.97046963,2761.3,2760.7,0.935158]
[1646823632073,2.96950963,2761.3,2760.7,0.935158]
[1646823632272,0.01034137,2761.2,2760.7,0.935158]
[1646823632573,1.2357805,2761.2,2760.7,0.935158]
[1646823633175,1.52543913,2761.2,2760.7,0.935158]
[1646823633380,2.52543913,2761.2,2760.8,1.81212]
[1646823633575,2.52543913,2761.2,2760.8,2.11212]
[1646823633774,3.52543913,2761.2,2760.8,2.11212]
[1646823633975,0.90611,2761.1,2760.8,2.11212]
[1646823634775,0.90611,2761.1,2760.8,0.3]
[1646823634776,1.0,2760.9,2760.8,0.3]
[1646823634977,1.3,2760.9,2760.6,3.62389]
[1646823635277,0.90635,2760.8,2760.6,3.62389]
[1646823635512,0.90635,2760.8,2760.5,0.3]
[1646823635716,1.20635,2760.8,2760.3,1.841878]
[1646823635921,1.20635,2760.8,2760.3,1.81271]
[1646823636317,1.0,2760.4,2760.3,1.81271]
[1646823636517,1.98885005,2760.4,2760.3,1.81271]
[1646823636718,1.0,2760.4,2760.3,1.81271]
[1646823637721,2.01168454,2760.4,2760.3,1.81271]
[1646823638524,2.31168454,2760.4,2760.3,1.81271]
[1646823639862,1.3,2760.4,2760.3,1.81271]
[1646823642367,1.0,2760.4,2760.3,1.81271]
[1646823642866,1.97547631,2760.4,2760.3,1.81271]
[1646823643315,1.0,2760.4,2760.3,1.81271]
[1646823645414,1.0,2760.5,2760.3,2.71908]
[1646823645617,3.0,2760.7,2760.4,1.81273]
[1646823645818,3.3,2760.7,2760.4,1.81273]
[1646823646019,1.0,2760.5,2760.4,1.81273]
[1646823646619,0.88733983,2760.5,2760.4,1.81273]
[1646823647467,4.03913958,2760.5,2760.4,1.81273]
[1646823647868,5.03913958,2760.5,2760.4,1.81273]
[1646823648166,6.03913958,2760.5,2760.4,1.81273]
[1646823648968,9.3233135,2760.5,2760.4,1.81273]
[1646823649167,9.62371695,2760.5,2760.3,3.01908]
[1646823649367,6.28913958,2760.5,2760.3,3.01908]
[1646823649967,3.28913958,2760.5,2760.3,3.01908]
[1646823650171,11.515,2760.4,2760.0,1.81318]
[1646823650372,0.90679,2760.2,2760.0,1.5691819]
[1646823650630,3.445,2760.1,2760.0,1.5691819]
[1646823650831,3.59679975,2760.1,2760.0,1.5691819]
[1646823651032,4.59679975,2760.1,2760.0,1.5691819]
[1646823651231,4.59679975,2760.1,2759.9,1.81357]
[1646823651439,7.01219874,2760.1,2759.9,2.11357]
[1646823651630,0.15179975,2760.0,2759.9,2.11357]
[1646823651830,0.59679975,2760.0,2759.9,2.11357]
[1646823652230,3.59679975,2760.0,2759.9,2.11357]
[1646823652630,4.59679975,2760.0,2759.9,2.11357]
[1646823654570,20.98045975,2760.0,2759.8,0.00396839]
[1646823654769,3.6118779,2759.9,2759.6,3.74784598]
[1646823654970,4.39679975,2759.9,2759.8,0.90675]
[1646823655172,5.245,2759.9,2759.8,0.91071839]
[1646823655370,0.15179975,2759.9,2759.8,0.91071839]
[1646823655574,4.90922047,2759.9,2759.8,0.91071839]
[1646823655775,4.35422047,2759.9,2759.8,0.91071839]
[1646823655975,0.72792047,2760.0,2759.8,0.90675]
[1646823656175,0.445,2759.9,2759.8,1.20675]
[1646823656380,0.59679975,2759.9,2759.8,1.20675]
[1646823656580,0.72792047,2760.0,2759.8,1.20675]
[1646823656776,0.72792047,2760.0,2759.8,2.11346]
[1646823656777,0.59679975,2759.9,2759.8,2.11346]
[1646823656978,3.59679975,2759.9,2759.8,2.11346]
[1646823657177,3.89679975,2759.9,2759.8,2.11346]
[1646823657378,4.89679975,2759.9,2759.8,2.11346]
[1646823657578,4.15179975,2759.9,2759.8,2.11346]
[1646823657780,4.4591813,2760.1,2759.8,2.11346]
[1646823657781,3.4591813,2760.1,2759.8,2.11346]
[1646823658060,4.7591813,2760.1,2759.8,2.11346]
[1646823658257,2.4591813,2760.1,2759.8,2.11346]
[1646823658456,1.4591813,2760.1,2759.8,2.11346]
[1646823658656,1.4591813,2760.1,2759.8,2.11728374]
[1646823659160,0.18925924,2760.0,2759.8,2.11728374]
[1646823659357,5.00291924,2760.0,2759.8,2.11728374]
[1646823659556,5.00291924,2760.0,2759.8,2.11346]
[1646823660055,5.00291924,2760.0,2759.8,2.11728401]
[1646823660460,1.0,2759.9,2759.8,2.11728401]
[1646823660661,5.00291924,2760.0,2759.8,2.11728401]
[1646823660862,6.00291924,2760.0,2759.8,2.11346]
[1646823661063,6.00291924,2760.0,2759.8,2.11728401]
[1646823661464,1.4591813,2760.1,2759.9,0.029168]
[1646823661670,1.4591813,2760.1,2759.9,2.748338]
[1646823662271,2.38333235,2760.1,2759.9,2.72299389]
[1646823662670,1.0,2760.0,2759.9,2.72299389]
[1646823662871,2.38333235,2760.1,2759.9,2.72299389]
[1646823663272,2.38333235,2760.1,2759.8,2.11346]
[1646823663273,2.52857535,2760.1,2759.8,2.11346]
[1646823663472,2.52857535,2760.1,2759.8,2.11730927]
[1646823663671,3.0,2759.9,2759.8,2.11730927]
[1646823664472,1.0,2759.9,2759.8,2.11346]
[1646823664974,2.81354,2759.9,2759.8,0.3]
[1646823665172,2.81354,2759.9,2759.7,0.00384939]
[1646823665373,6.00274535,2759.9,2759.7,0.00384939]
[1646823665631,6.00274535,2759.9,2759.6,0.12123598]
[1646823665829,6.00274535,2759.9,2759.7,0.00384945]
[1646823666031,6.00274535,2759.9,2759.8,1.81346]
[1646823666232,7.00274535,2759.9,2759.8,1.81346]
[1646823666533,3.00274535,2759.9,2759.8,2.11346]
[1646823666733,3.00274535,2759.9,2759.8,5.642628]
[1646823666734,0.18920535,2759.9,2759.8,5.642628]
[1646823666937,0.18920535,2759.9,2759.8,2.142628]
[1646823667633,0.18920535,2759.9,2759.8,3.26228101]
[1646823667835,0.90675,2760.0,2759.8,3.26228101]
[1646823668437,0.90675,2760.0,2759.8,2.11346]
[1646823669478,0.90675,2760.0,2759.8,2.11730501]
[1646823670477,0.90675,2760.0,2759.8,2.11346]
[1646823670678,1.94136249,2760.0,2759.8,2.11730574]
[1646823671381,0.90675,2760.0,2759.8,2.11730574]
[1646823671578,0.90675,2760.0,2759.8,2.11346]
[1646823671983,0.90675,2760.0,2759.8,2.11730574]
[1646823672381,0.90675,2760.0,2759.9,0.029168]
[1646823673222,0.90675,2760.0,2759.8,2.11730568]
[1646823674024,0.90675,2760.0,2759.8,2.142628]
[1646823674527,0.90675,2760.0,2759.8,2.14668398]
[1646823674725,0.90675,2760.0,2759.8,2.17585198]
[1646823674928,0.90675,2760.0,2759.8,2.11751598]
[1646823675126,0.90675,2760.0,2759.8,2.11346]
[1646823675525,0.90675,2760.0,2759.8,2.11751598]
[1646823676530,0.90675,2760.0,2759.8,2.11346]
[1646823676778,0.90675,2760.0,2759.8,2.11751598]
[1646823677569,0.90675,2760.0,2759.8,2.11346]
[1646823677770,0.90675,2760.0,2759.8,2.11742325]
[1646823678371,0.90675,2760.0,2759.6,1.96376398]
[1646823678372,4.5,2759.9,2759.6,1.93459598]
[1646823678572,3.0,2759.7,2759.6,0.12123598]
[1646823678770,4.35187,2759.7,2759.6,0.12123598]
[1646823678969,6.50128201,2759.7,2759.6,0.12123598]
[1646823679170,5.35187,2759.7,2759.6,1e-08]
[1646823679373,1.0,2760.3,2759.6,3.50000001]
[1646823679576,0.14941201,2760.9,2760.2,0.04137984]
[1646823679776,10.95073474,2761.0,2760.8,0.029168]
[1646823679973,0.03072404,2761.2,2760.9,0.029168]
[1646823680172,2.53566168,2761.4,2761.1,0.029168]
[1646823680376,2.38361534,2761.9,2761.2,0.029168]
[1646823680631,2.38361534,2761.9,2761.1,4.4349465]
[1646823680632,3.0,2761.3,2761.1,4.4349465]
[1646823680831,2.38361534,2761.9,2761.1,0.9641145]
[1646823681031,2.38361534,2761.9,2761.1,7.1814545]
[1646823681232,2.38361534,2761.9,2761.1,3.6814545]
[1646823681433,3.28946534,2761.9,2761.1,3.6814545]
[1646823681632,0.90585,2761.9,2761.4,0.90338245]
[1646823681840,2.91279051,2762.0,2761.6,0.029168]
[1646823681841,2.8253044,2762.0,2761.6,0.029168]
[1646823682035,2.5253044,2762.0,2761.6,0.029168]
[1646823682234,2.5253044,2762.0,2761.5,6.6088167]
[1646823682438,2.5253044,2762.0,2761.6,0.029168]
[1646823682934,2.5253044,2762.0,2761.9,1.2107876]
[1646823683135,0.0253044,2762.0,2761.9,1.2107876]
[1646823683737,0.0253044,2762.0,2761.8,2.1114791]
[1646823685078,0.02790348,2762.0,2761.9,1.10544136]
[1646823685272,0.02790348,2762.0,2761.9,1.1041964]
[1646823685677,0.02790348,2762.0,2761.8,2.1114791]
[1646823686077,0.0253044,2762.0,2761.8,2.1114791]
[1646823686279,0.0253044,2762.0,2761.8,1.20574]
[1646823686580,0.02790348,2762.0,2761.8,1.20574]
[1646823686981,1.83969348,2762.0,2761.8,1.20574]
[1646823687381,1.8370944,2762.0,2761.8,1.20574]
[1646823687583,0.02790348,2762.0,2761.8,1.20574]
[1646823688022,1.83963348,2762.0,2761.8,1.20574]
[1646823688225,1.83963348,2762.0,2761.8,0.90574]
[1646823688422,1.8370344,2762.0,2761.8,0.90574]
[1646823688623,1.0,2761.9,2761.8,0.90574]
[1646823689228,4.0,2761.9,2761.8,0.90574]
[1646823689628,5.0,2761.9,2761.8,0.90574]
[1646823690029,5.0,2761.9,2761.8,1.20574]
[1646823690236,5.0,2761.9,2761.8,0.90574]
[1646823690429,5.0,2761.9,2761.8,1.20574]
[1646823691785,5.0,2761.9,2761.8,0.3]
[1646823692174,5.0,2761.9,2761.7,4.8287]
[1646823693576,5.00259908,2761.9,2761.7,4.8287]
[1646823694176,2.44759908,2761.9,2761.3,0.00252933]
[1646823694377,4.81244,2761.8,2761.3,3.50252933]
[1646823694579,2.69258592,2762.0,2761.7,0.029168]
[1646823694580,0.0253044,2762.0,2761.7,0.029168]
[1646823694880,0.0253044,2762.0,2761.8,0.029168]
[1646823694881,0.00259908,2761.9,2761.8,0.029168]
[1646823695078,0.00259908,2761.9,2761.7,0.029168]
[1646823695280,0.0253044,2762.0,2761.7,0.029168]
[1646823695281,0.0506088,2762.0,2761.8,3.0]
[1646823695523,0.0506088,2762.0,2761.8,3.029168]
[1646823695725,0.0506088,2762.0,2761.9,0.029168]
[1646823696225,0.0506088,2762.0,2761.8,3.529168]
[1646823696826,0.0274656,2762.0,2761.8,0.029168]
[1646823697026,0.0274656,2762.0,2761.8,3.529168]
[1646823697327,0.05022928,2762.1,2761.9,1.840598]
[1646823697727,0.05022928,2762.1,2761.9,2.140598]
[1646823700581,3.46572,2762.4,2762.1,1.05946618]
[1646823700777,3.50580376,2762.4,2762.1,1.96513618]
[1646823701180,3.50580376,2762.4,2762.1,2.26513618]
[1646823701575,3.50580376,2762.4,2762.1,1.20567]
[1646823701978,3.50838987,2762.4,2762.1,2.11134]
[1646823703022,3.50580376,2762.4,2762.1,2.11134]